bitfinex/quotes_SOLUSD_20220129
["timestamp","ask_amount","ask_price","bid_price","bid_amount"]
[1643429297730,56.41938991,92.405,92.329,6.0]
[1643429297931,1.50507345,92.424,92.33,15.77]
[1643429298131,2.99928858,92.45,92.331,47.4117]
[1643429298132,16.242,92.43,92.331,47.4117]
[1643429298330,0.1,92.429,92.34,6.0]
[1643429298530,0.1,92.429,92.342,6.0]
[1643429298729,0.1,92.429,92.343,22.8274]
[1643429298930,30.722296,92.429,92.351,36.58123763]
[1643429299131,0.1,92.428,92.353,6.0]
[1643429299332,0.1,92.428,92.361,6.0]
[1643429299532,0.1,92.428,92.364,6.0]
[1643429299932,0.1,92.428,92.365,0.25]
[1643429301334,0.1,92.428,92.355,0.25]
[1643429301532,6.0,92.419,92.355,0.25]
[1643429301935,0.1,92.428,92.356,2.71608432]
[1643429302335,0.1,92.428,92.357,0.25]
[1643429302534,0.1,92.428,92.366,6.0]
[1643429302933,0.1,92.428,92.357,0.25]
[1643429302934,0.1,92.428,92.367,2.96608432]
[1643429303335,0.1,92.428,92.368,2.71608432]
[1643429303836,0.1,92.428,92.369,0.25]
[1643429304240,0.1,92.428,92.37,2.71608432]
[1643429304538,0.1,92.428,92.38,6.0]
[1643429304836,0.1,92.428,92.381,34.5795114]
[1643429305735,0.1,92.428,92.381,0.25]
[1643429306137,0.1,92.428,92.366,0.25]
[1643429306536,0.1,92.428,92.375,6.0]
[1643429306937,0.1,92.428,92.376,38.83015939]
[1643429307337,0.1,92.428,92.376,41.54624371]
[1643429307536,0.1,92.428,92.377,2.71608432]
[1643429307736,0.1,92.428,92.376,38.58015939]
[1643429309238,0.1,92.428,92.377,0.25]
[1643429310238,0.1,92.428,92.366,0.25]
[1643429311041,0.1,92.428,92.366,43.17752154]
[1643429312241,0.1,92.428,92.366,42.92752154]
[1643429312739,0.1,92.428,92.346,2.71608432]
[1643429312740,16.244,92.42,92.346,2.71608432]
[1643429313141,16.244,92.42,92.332,22.5625]
[1643429313343,6.0,92.41,92.332,22.5625]
[1643429313542,6.0,92.418,92.333,37.10038429]
[1643429313943,16.246,92.41,92.333,37.10038429]
[1643429314142,6.0,92.4,92.333,37.10038429]
[1643429314442,6.0,92.4,92.333,0.25]
[1643429314642,6.0,92.406,92.333,0.25]
[1643429314844,23.6219,92.405,92.322,0.25]
[1643429315142,6.0,92.395,92.322,0.25]
[1643429315341,34.21425497,92.394,92.312,0.25]
[1643429315744,6.0,92.384,92.312,0.25]
[1643429316745,16.25,92.38,92.312,0.25]
[1643429317149,16.25,92.38,92.313,2.71608432]
[1643429317353,0.25,92.379,92.314,0.25]
[1643429318048,0.25,92.379,92.323,6.0]
[1643429318450,0.25,92.383,92.324,0.25]
[1643429319248,0.25,92.383,92.324,22.7581]
[1643429319452,16.249,92.39,92.324,22.7581]
[1643429321155,10.91695497,92.394,92.324,22.7581]
[1643429321156,10.91695497,92.394,92.325,2.71608432]
[1643429321354,10.91695497,92.394,92.326,0.25]
[1643429321652,10.91695497,92.394,92.335,6.0]
[1643429321853,10.91695497,92.394,92.336,0.25]
[1643429322054,10.91695497,92.394,92.337,6.0]
[1643429322258,10.91695497,92.394,92.338,0.25]
[1643429322456,10.91695497,92.394,92.338,25.1298]
[1643429322655,10.91695497,92.394,92.348,6.0]
[1643429322856,10.91695497,92.394,92.316,2.71608432]
[1643429323056,23.6074,92.393,92.337,6.0]
[1643429323255,23.6074,92.393,92.313,24.8798]
[1643429323456,23.6074,92.393,92.323,6.0]
[1643429323856,0.25,92.392,92.324,0.25]
[1643429324056,16.249,92.39,92.324,0.25]
[1643429326661,16.249,92.39,92.324,24.129]
[1643429327460,16.249,92.39,92.324,23.879]
[1643429328882,16.249,92.39,92.325,0.25]
[1643429333286,0.25,92.389,92.325,0.25]
[1643429333488,16.249,92.39,92.325,0.25]
[1643429333688,16.245,92.41,92.325,2.96608432]
[1643429333888,1.50507345,92.422,92.334,6.0]
[1643429334090,0.1,92.425,92.336,6.0]
[1643429334289,0.1,92.425,92.337,0.25]
[1643429334589,38.82699731,92.425,92.346,35.34947027]
[1643429334789,38.82699731,92.425,92.347,0.25]
[1643429334990,38.82699731,92.425,92.356,6.0]
[1643429335391,38.82699731,92.425,92.357,31.1461]
[1643429335592,38.82699731,92.425,92.367,6.0]
[1643429335791,38.82699731,92.425,92.368,0.25]
[1643429336391,38.82699731,92.425,92.368,6.25]
[1643429338391,38.82699731,92.425,92.369,2.71608432]
[1643429338593,38.82699731,92.425,92.379,6.0]
[1643429338791,0.25,92.424,92.38,33.16605921]
[1643429338993,0.25,92.424,92.39,6.0]
[1643429339194,0.25,92.424,92.38,33.16605921]
[1643429341994,0.25,92.424,92.39,6.0]
[1643429343000,0.25,92.424,92.38,33.16605921]
[1643429343398,0.25,92.424,92.38,0.25]
[1643429343898,0.25,92.424,92.368,0.25]
[1643429344499,0.25,92.424,92.368,37.46524778]
[1643429344699,16.244,92.42,92.368,0.25]
[1643429345403,16.244,92.42,92.351,25.1504]
[1643429345599,16.244,92.42,92.361,6.0]
[1643429345799,16.244,92.42,92.362,0.25]
[1643429346000,16.244,92.42,92.367,6.0]
[1643429346404,16.244,92.42,92.368,0.25]
[1643429350003,24.6456,92.424,92.368,0.25]
[1643429350605,24.6456,92.424,92.368,24.2521]
[1643429353005,24.6456,92.424,92.368,24.0021]
[1643429354406,24.6456,92.424,92.369,0.25]
[1643429354606,24.6456,92.424,92.369,2.96608432]
[1643429355106,24.6456,92.424,92.379,6.0]
[1643429355306,38.82699731,92.425,92.38,0.25]
[1643429355507,38.72699731,92.425,92.38,0.25]
[1643429356308,38.82699731,92.425,92.38,0.25]
[1643429356609,38.72699731,92.425,92.369,0.25]
[1643429357411,38.82699731,92.425,92.369,0.25]
[1643429357611,38.72699731,92.425,92.369,0.25]
[1643429358412,38.82699731,92.425,92.369,0.25]
[1643429358610,38.72699731,92.425,92.369,0.25]
[1643429359414,38.82699731,92.425,92.369,0.25]
[1643429359713,38.72699731,92.425,92.369,0.25]
[1643429360314,0.25,92.424,92.369,0.25]
[1643429361015,0.25,92.424,92.414,0.0063209]
[1643429361217,6.0,92.415,92.414,0.0063209]
[1643429361641,6.0643,92.42,92.414,0.0063209]
[1643429362044,0.25,92.424,92.414,0.0063209]
[1643429362242,38.72699731,92.425,92.414,0.0063209]
[1643429363447,0.1,92.43,92.414,0.0063209]
[1643429363648,1.50507345,92.451,92.414,0.0063209]
[1643429364048,1.50507345,92.455,92.414,0.0063209]
[1643429364350,0.1,92.461,92.414,0.0063209]
[1643429364351,29.22832007,92.461,92.414,0.0063209]
[1643429364649,6.0,92.451,92.416,6.0]
[1643429364847,6.0,92.451,92.417,0.25]
[1643429367654,6.0,92.451,92.416,6.0]
[1643429367953,6.0,92.451,92.414,0.0063209]
[1643429368154,24.5338,92.45,92.414,0.0063209]
[1643429368357,0.1,92.449,92.414,0.0063209]
[1643429368556,6.0,92.44,92.414,0.0063209]
[1643429370155,22.24,92.44,92.414,0.0063209]
[1643429370357,0.1,92.439,92.414,0.0063209]
[1643429370961,6.0,92.44,92.414,0.0063209]
[1643429371361,6.0,92.44,92.375,0.25]
[1643429371659,6.0,92.43,92.375,0.25]
[1643429371860,12.1609309,92.429,92.384,6.0]
[1643429372059,0.1,92.428,92.385,24.6775]
[1643429372259,0.1,92.428,92.384,6.0]
[1643429372460,6.0,92.419,92.35,15.77]
[1643429372860,6.0,92.419,92.36,6.0]
[1643429373059,6.0,92.419,92.361,6.0]
[1643429373463,0.1,92.428,92.362,43.64284041]
[1643429373861,0.1,92.428,92.363,0.25]
[1643429374061,0.1,92.428,92.361,6.0]
[1643429374261,6.0,92.419,92.362,0.25]
[1643429374960,6.0,92.419,92.362,37.42573803]
[1643429375162,0.1,92.426,92.362,37.42573803]
[1643429375362,0.1,92.427,92.363,23.0207]
[1643429375562,0.1,92.428,92.363,23.0207]
[1643429375761,0.1,92.428,92.364,0.25]
[1643429377463,6.0,92.419,92.364,0.25]
[1643429377763,6.0,92.419,92.363,23.0207]
[1643429378163,6.0,92.418,92.363,23.0207]
[1643429378366,6.0,92.418,92.364,0.25]
[1643429378766,0.1,92.427,92.364,0.25]
[1643429379768,0.1,92.427,92.363,23.0207]
[1643429379970,6.0,92.418,92.362,37.17573803]
[1643429380367,0.25,92.417,92.362,37.17573803]
[1643429381070,0.25,92.417,92.341,24.6258]
[1643429381269,23.1615,92.417,92.351,6.0]
[1643429381468,23.1615,92.417,92.342,0.25]
[1643429381669,6.0,92.407,92.342,0.25]
[1643429382069,6.0,92.407,92.342,38.07719954]
[1643429382669,6.0,92.407,92.342,0.25]
[1643429383069,6.0,92.4,92.342,0.25]
[1643429383469,16.246,92.41,92.351,6.0]
[1643429383672,16.246,92.41,92.352,34.99816851]
[1643429383673,29.12832007,92.399,92.352,34.99816851]
[1643429384771,16.246,92.41,92.353,0.25]
[1643429384970,0.1,92.425,92.353,0.25]
[1643429385272,0.1,92.435,92.362,6.0]
[1643429385472,0.1,92.435,92.363,23.6276]
[1643429385672,29.31846131,92.425,92.363,23.8776]
[1643429385871,29.41846131,92.425,92.373,6.0]
[1643429386273,29.41846131,92.425,92.374,0.25]
[1643429387273,29.41846131,92.425,92.373,6.0]
[1643429387695,0.1,92.425,92.374,0.25]
[1643429387896,6.0,92.426,92.374,0.25]
[1643429388095,6.0,92.437,92.374,0.25]
[1643429388296,6.0,92.437,92.374,24.1063]
[1643429388496,1.50507345,92.462,92.374,30.1063]
[1643429388696,1.50507345,92.465,92.375,24.9485]
[1643429388898,16.237,92.46,92.376,0.25]
[1643429389096,0.1,92.459,92.386,35.91258052]
[1643429389399,1.50507345,92.456,92.387,0.25]
[1643429389596,1.50507345,92.454,92.387,0.25]
[1643429389997,6.0,92.444,92.387,0.25]
[1643429390598,6.0,92.443,92.387,0.25]
[1643429391096,0.1,92.449,92.387,0.25]
[1643429391699,0.35,92.449,92.387,0.25]
[1643429392098,0.35,92.449,92.396,6.0]
[1643429392298,0.35,92.449,92.397,0.25]
[1643429393600,0.1,92.449,92.397,6.25]
[1643429393799,0.1,92.462,92.398,24.9651]
[1643429394000,24.9644,92.479,92.398,24.9651]
[1643429394001,6.0,92.45,92.398,38.4651]
[1643429394199,6.0,92.454,92.398,38.4651]
[1643429394399,6.0,92.454,92.408,6.0]
[1643429394802,6.0,92.454,92.409,0.25]
[1643429395202,6.0,92.454,92.398,24.7151]
[1643429395403,6.0,92.454,92.399,0.25]
[1643429397201,6.0,92.45,92.399,0.25]
[1643429400003,6.0,92.449,92.399,0.25]
[1643429401605,6.0,92.449,92.408,6.0]
[1643429401806,6.0,92.449,92.409,0.25]
[1643429402003,6.0,92.449,92.418,6.0]
[1643429402204,6.0,92.449,92.409,0.25]
[1643429403407,0.25,92.448,92.409,0.25]
[1643429406211,6.0,92.449,92.409,0.25]
[1643429407511,6.0,92.454,92.409,115.05]
[1643429407715,6.0,92.454,92.41,24.4912]
[1643429407913,6.0,92.454,92.42,34.99816851]
[1643429408116,6.0,92.454,92.42,40.99816851]
[1643429408313,6.0,92.454,92.421,0.25]
[1643429410717,0.1,92.463,92.421,0.25]
[1643429410918,0.1,92.483,92.421,22.935]
[1643429411117,0.1,92.483,92.431,6.0]
[1643429411317,16.233,92.48,92.431,6.0]
[1643429411517,16.233,92.48,92.377,1.48887398]
[1643429411518,6.0,92.47,92.39,15.77]
[1643429411918,6.0,92.472,92.376,23.5058]
[1643429412120,6.0,92.472,92.358,1.48887398]
[1643429412121,1.50507345,92.468,92.358,1.48887398]
[1643429412318,38.06944258,92.448,92.339,44.4108765]
[1643429412517,6.0,92.438,92.339,44.4108765]
[1643429412719,23.0803,92.437,92.34,24.6647]
[1643429412919,6.0,92.43,92.34,24.6647]
[1643429413121,0.1,92.436,92.34,24.6647]
[1643429413122,6.0,92.427,92.34,24.6647]
[1643429413321,6.0,92.427,92.341,0.25]
[1643429413723,16.245,92.41,92.341,0.25]
[1643429413929,16.245,92.41,92.34,0.25]
[1643429414124,6.0,92.4,92.34,0.25]
[1643429414522,6.0,92.408,92.34,0.25]
[1643429414923,6.0,92.4,92.34,0.25]
[1643429415123,16.247,92.4,92.34,0.25]
[1643429415525,6.0,92.39,92.325,22.8825]
[1643429415724,6.0,92.39,92.324,22.9977]
[1643429415725,6.0,92.39,92.318,1.48887398]
[1643429415924,6.0,92.39,92.316,1.48887398]
[1643429416127,6.0,92.389,92.302,6.0]
[1643429416424,6.0,92.389,92.303,6.0]
[1643429416624,32.64246212,92.388,92.304,36.51937865]
[1643429417026,6.0,92.378,92.304,36.51937865]
[1643429417426,6.0,92.37,92.304,36.51937865]
[1643429418129,6.0,92.378,92.304,36.51937865]
[1643429418326,6.0,92.378,92.305,0.25]
[1643429419129,16.252,92.37,92.304,36.51937865]
[1643429419529,8.64678885,92.359,92.304,36.51937865]
[1643429419930,8.64678885,92.359,92.305,2.7173771]
[1643429420135,8.64678885,92.359,92.315,6.0]
[1643429420529,8.64678885,92.359,92.316,0.25]
[1643429420931,16.252,92.37,92.316,0.25]
[1643429421349,0.25,92.369,92.316,0.25]
[1643429421751,0.25,92.369,92.315,6.0]
[1643429421952,34.89551529,92.369,92.315,6.0]
[1643429422150,34.89551529,92.369,92.314,6.0]
[1643429422550,34.89551529,92.369,92.304,36.51937865]
[1643429422751,34.64551529,92.369,92.305,108.8]
[1643429422954,16.249,92.39,92.305,108.8]
[1643429422955,16.249,92.39,92.314,6.0]
[1643429423153,16.249,92.39,92.315,6.0]
[1643429423555,0.1,92.426,92.32,15.77]
[1643429423754,0.1,92.441,92.321,108.8]
[1643429423955,34.50802364,92.447,92.33,6.0]
[1643429424154,0.1,92.446,92.332,34.39137038]
[1643429424360,16.242,92.43,92.333,0.25]
[1643429424557,0.1,92.429,92.342,6.0]
[1643429424970,6.0,92.42,92.343,6.25]
[1643429425154,6.0,92.437,92.343,0.25]
[1643429426157,6.78122733,92.419,92.343,0.25]
[1643429427358,16.245,92.41,92.343,0.25]
[1643429429159,16.245,92.41,92.342,6.0]
[1643429429357,16.245,92.41,92.343,0.25]
[1643429429558,16.245,92.41,92.333,0.25]
[1643429429959,0.25,92.409,92.333,0.25]
[1643429430161,0.25,92.409,92.342,6.0]
[1643429430459,0.25,92.409,92.343,0.25]
[1643429431463,0.25,92.409,92.342,6.0]
[1643429431661,0.25,92.409,92.343,0.25]
[1643429435665,0.25,92.409,92.342,6.0]
[1643429435865,0.25,92.409,92.343,0.25]
[1643429436866,0.25,92.409,92.342,6.0]
[1643429437268,0.25,92.409,92.344,108.8]
[1643429437667,0.25,92.409,92.345,0.25]
[1643429439770,0.25,92.409,92.344,109.05]
[1643429440376,6.78122733,92.419,92.344,109.05]
[1643429442177,6.78122733,92.419,92.344,0.25]
[1643429442577,6.78122733,92.419,92.353,6.0]
[1643429444080,0.25,92.418,92.353,6.0]
[1643429445781,0.25,92.418,92.354,0.25]
[1643429446982,0.25,92.418,92.344,23.9121]
[1643429447183,0.25,92.418,92.345,108.8]
[1643429447383,0.25,92.418,92.346,0.25]
[1643429448586,0.25,92.418,92.345,0.25]
[1643429448788,6.0,92.409,92.345,0.25]
[1643429448988,24.1993,92.418,92.345,0.25]
[1643429449186,6.0,92.409,92.345,0.25]
[1643429449385,23.9493,92.418,92.345,0.25]
[1643429449584,23.9493,92.418,92.354,6.0]
[1643429449784,23.9493,92.418,92.355,0.25]
[1643429449985,16.245,92.41,92.344,23.6621]
[1643429450885,16.245,92.41,92.354,6.0]
[1643429451288,16.245,92.41,92.355,0.25]
[1643429451485,6.78122733,92.419,92.355,109.05]
[1643429451686,6.78122733,92.419,92.357,108.8]
[1643429451887,6.78122733,92.419,92.366,36.51937865]
[1643429452286,6.78122733,92.419,92.367,0.25]
[1643429452586,6.78122733,92.419,92.376,6.0]
[1643429452786,1.50507345,92.433,92.377,0.25]
[1643429453085,6.0,92.423,92.377,6.25]
[1643429453486,0.25,92.422,92.377,6.25]
[1643429453890,0.25,92.422,92.377,0.25]
[1643429454085,6.0,92.413,92.377,109.05]
[1643429454288,6.0,92.413,92.377,111.77346594]
[1643429454487,1.50507345,92.45,92.387,6.0]
[1643429454688,1.50507345,92.456,92.388,108.8]
[1643429454887,1.50507345,92.456,92.388,109.05]
[1643429455120,37.87483015,92.455,92.399,34.39137038]
[1643429455289,0.35,92.454,92.4,0.25]
[1643429455487,0.1,92.454,92.4,0.25]
[1643429455889,0.35,92.454,92.4,0.25]
[1643429456088,0.1,92.454,92.4,0.25]
[1643429457086,0.35,92.454,92.4,0.25]
[1643429457686,0.1,92.454,92.4,0.25]
[1643429457888,0.35,92.454,92.409,6.0]
[1643429458086,0.1,92.454,92.41,0.25]
[1643429458287,0.1,92.454,92.41,109.05]
[1643429458686,0.1,92.454,92.42,6.0]
[1643429458887,0.1,92.454,92.421,0.25]
[1643429460490,0.1,92.454,92.41,108.8]
[1643429460491,0.1,92.454,92.42,6.0]
[1643429460688,0.1,92.454,92.411,0.25]
[1643429462891,0.35,92.454,92.411,0.25]
[1643429463693,0.35,92.454,92.409,6.0]
[1643429463891,0.35,92.454,92.41,6.25]
[1643429464090,0.1,92.454,92.41,6.25]
[1643429466895,0.35,92.454,92.41,6.25]
[1643429467994,0.35,92.454,92.37,15.77]
[1643429468195,0.35,92.454,92.341,24.4985]
[1643429468395,2.95669142,92.453,92.371,0.25]
[1643429468597,6.0,92.443,92.371,0.25]
[1643429468995,24.0775,92.442,92.371,0.25]
[1643429469195,0.1,92.441,92.371,0.25]
[1643429469494,6.0,92.432,92.346,0.25]
[1643429470119,16.242,92.43,92.346,0.25]
[1643429470297,0.1,92.429,92.346,0.25]
[1643429470499,3.41442082,92.419,92.346,0.25]
[1643429470899,6.0,92.409,92.346,0.25]
[1643429471301,0.25,92.408,92.346,0.25]
[1643429471499,0.25,92.408,92.345,0.25]
[1643429471699,0.25,92.408,92.342,0.25]
[1643429473399,6.0,92.4,92.342,0.25]
[1643429477210,0.25,92.408,92.342,0.25]
[1643429477410,0.25,92.409,92.342,0.25]
[1643429479432,6.0,92.4,92.342,0.25]
[1643429482339,0.25,92.399,92.342,0.25]
[1643429485840,6.0,92.4,92.343,2.72346594]
[1643429486043,0.1,92.429,92.353,6.0]
[1643429486240,1.50507345,92.462,92.354,24.3302]
[1643429486442,0.1,92.469,92.354,27.30366594]
[1643429486443,1.50507345,92.468,92.354,27.30366594]
[1643429486643,6.0,92.458,92.365,108.8]
[1643429486840,6.0,92.458,92.366,0.25]
[1643429487041,40.78783085,92.456,92.366,33.78555297]
[1643429487241,0.1,92.455,92.366,33.78555297]
[1643429487443,0.35,92.455,92.376,6.0]
[1643429487645,16.238,92.45,92.377,24.5864]
[1643429487843,0.35,92.449,92.377,24.8364]
[1643429488043,0.35,92.449,92.387,6.0]
[1643429488442,0.35,92.449,92.388,0.25]
[1643429490048,0.1,92.449,92.388,0.25]
[1643429490247,0.1,92.449,92.388,109.05]
[1643429490446,0.1,92.455,92.398,6.0]
[1643429490746,0.35,92.455,92.399,37.37519606]
[1643429490946,0.35,92.455,92.399,37.62519606]
[1643429491150,0.35,92.455,92.409,6.0]
[1643429491346,0.1,92.455,92.41,0.25]
[1643429492644,6.0,92.446,92.401,0.25]
[1643429493448,0.25,92.445,92.401,0.25]
[1643429494847,0.25,92.445,92.41,6.0]
[1643429495248,0.35,92.455,92.411,0.25]
[1643429497152,6.0,92.446,92.411,0.25]
[1643429497353,0.25,92.445,92.411,0.25]
[1643429499257,6.0,92.446,92.411,0.25]
[1643429499459,6.0,92.446,92.401,0.25]
[1643429502862,0.25,92.445,92.401,0.25]
[1643429503062,6.0,92.446,92.401,0.25]
[1643429503464,0.1,92.455,92.401,0.25]
[1643429503883,0.1,92.475,92.402,2.72346594]
[1643429504084,1.50507345,92.495,92.412,6.0]
[1643429504283,1.50507345,92.495,92.413,132.654]
[1643429504487,1.50507345,92.497,92.413,132.654]
[1643429504687,35.561106,92.494,92.423,6.0]
[1643429504883,35.561106,92.494,92.4,15.77]
[1643429504884,6.0,92.484,92.389,2.72346594]
[1643429505084,25.72097345,92.483,92.414,0.25]
[1643429505285,6.0,92.478,92.414,0.25]
[1643429505484,0.1,92.483,92.414,0.25]
[1643429505687,6.0,92.484,92.414,0.25]
[1643429506185,2.99928858,92.516,92.408,6.0]
[1643429506186,0.00956394,92.591,92.415,44.59220083]
[1643429506387,390.56703688,92.729,92.642,22.56583504]
[1643429506589,174.577,92.893,92.76,70.69194552]
[1643429506590,7.48647174,92.766,92.76,70.69194552]
[1643429506786,17.96753218,92.836,92.76,70.69194552]
[1643429506787,126.11829567,92.763,92.761,0.25]
[1643429507086,2.98961593,92.864,92.782,82.49198698]
[1643429507288,15.8995,92.881,92.85,197.08]
[1643429507485,4.48442389,92.938,92.792,6.0]
[1643429507486,4.48442389,92.938,92.87,197.08]
[1643429507685,4.48442389,92.938,92.93,197.08]
[1643429507887,15.8627,93.082,92.931,0.25]
[1643429508285,36.45562621,93.081,92.942,0.00273516]
[1643429508486,0.31653453,93.059,92.95,15.77]
[1643429508786,0.30715595,93.058,92.951,0.25]
[1643429508986,36.13804835,93.081,92.951,0.25]
[1643429509387,36.13804835,93.081,93.055,0.00626462]
[1643429509586,36.13804835,93.081,93.078,0.00250488]
[1643429509791,0.31371688,93.079,92.901,0.00127236]
[1643429510086,70.0,93.033,92.85,6.0]
[1643429510287,0.31093375,92.987,92.85,6.0]
[1643429510486,0.31705876,93.034,92.85,15.77]
[1643429510688,16.1413,93.105,92.851,10.81]
[1643429510888,17.15126248,93.014,92.851,63.34771575]
[1643429511087,6.0,93.004,92.86,12.91]
[1643429511385,36.13804835,93.013,92.861,20.25439263]
[1643429511590,0.1,93.012,92.952,12.80808077]
[1643429511792,35.73804835,93.013,92.952,12.80808077]
[1643429512490,35.73804835,93.013,92.951,11.91306189]
[1643429512889,6.0,93.003,92.951,11.91306189]
[1643429513090,2.95669142,93.034,92.951,11.91306189]
[1643429513290,2.95669142,93.034,92.952,0.25]
[1643429513891,17.15126248,93.045,92.952,0.25]
[1643429514093,12.91,93.04,92.953,10.81]
[1643429514494,12.91,93.04,92.953,22.81296494]
[1643429514795,12.41,93.04,92.953,22.81296494]
[1643429515194,12.41,93.04,92.963,6.0]
[1643429515895,12.41,93.04,92.964,0.25]
[1643429516295,12.41,93.04,92.953,10.81]
[1643429516296,3.20669142,93.039,92.953,10.81]
[1643429516698,2.95669142,93.038,92.953,10.81]
[1643429516896,0.25,93.037,92.953,10.81]
[1643429517196,28.29571469,93.027,92.953,34.51641712]
[1643429517398,0.35,93.026,92.952,10.81]
[1643429517598,6.0,93.017,92.952,10.81]
[1643429518196,6.0,93.015,92.952,10.81]
[1643429518696,6.0,93.017,92.896,97.7018357]
[1643429518895,6.0,93.017,92.937,6.0]
[1643429519299,6.0,93.017,92.94,16.134]
[1643429519502,0.1,93.029,92.94,16.134]
[1643429519702,6.0,93.02,92.95,6.0]
[1643429519898,0.1,93.049,92.951,0.25]
[1643429520100,6.0,93.04,92.951,8.99792359]
[1643429520302,37.56817466,93.039,92.952,31.03761471]
[1643429520504,0.1,93.038,92.971,13.26378918]
[1643429521304,0.1,93.038,92.97,16.128]
[1643429521499,0.35,93.038,92.92,12.91]
[1643429521700,0.35,93.038,92.911,97.7018357]
[1643429521900,0.1,93.038,92.937,6.0]
[1643429522101,12.91,93.07,92.937,6.0]
[1643429522301,0.25,93.038,92.937,6.0]
[1643429522501,0.25,93.038,92.938,39.68859829]
[1643429523001,0.25,93.038,92.948,5.77065563]
[1643429523301,0.25,93.039,92.949,0.25]
[1643429523700,0.25,93.059,92.949,0.25]
[1643429524302,7.65925229,93.049,92.95,16.133]
[1643429524700,0.25,93.048,92.961,42.18098026]
[1643429524902,0.25,93.048,92.962,0.25]
[1643429525300,0.25,93.048,92.961,42.18098026]
[1643429525703,0.25,93.048,92.96,6.0]
[1643429525905,0.25,93.048,92.94,22.135]
[1643429526305,7.65925229,93.049,92.94,22.135]
[1643429526505,7.65925229,93.049,92.941,2.74792359]
[1643429526706,7.65925229,93.049,92.97,16.13]
[1643429526906,18.62223574,93.049,92.971,36.21171632]
[1643429527308,0.1,93.048,92.971,36.21171632]
[1643429527607,0.1,93.048,92.917,0.0018357]
[1643429527809,16.136,93.04,92.917,0.0018357]
[1643429528019,19.22241518,93.03,92.87,53.811]
[1643429528209,0.1,93.029,92.87,53.811]
[1643429528609,13.35562484,93.029,92.897,42.16595428]
[1643429528809,16.144,93.0,92.901,108.8]
[1643429529012,17.37912561,92.999,92.9,16.142]
[1643429529311,17.37912561,92.999,92.901,0.25]
[1643429529510,17.37912561,92.999,92.898,109.05]
[1643429529912,0.1,93.023,92.898,109.05]
[1643429530111,0.1,93.029,92.91,16.14]
[1643429530316,0.1,93.029,92.911,0.25]
[1643429530918,20.54603417,93.029,92.911,0.25]
[1643429531118,0.1,93.028,92.911,0.25]
[1643429531318,0.1,93.028,92.921,39.92305445]
[1643429531518,0.1,93.028,92.931,6.0]
[1643429532017,0.1,93.028,92.932,0.25]